bitfinex-derivatives/quotes_ETHF0:USTF0_20250205
["timestamp","ask_amount","ask_price","bid_price","bid_amount"]
[1738723097005,3.2078,2720.5,2719.4,3.48933912]
[1738723097201,3.2078,2720.5,2719.4,4.07747912]
[1738723097498,0.686,2721.0,2718.9,1.393]
[1738723097499,3.2078,2720.2,2719.5,3.2078]
[1738723097699,3.2078,2720.2,2719.6,0.6495]
[1738723097902,3.2078,2720.6,2719.6,0.6495]
[1738723098101,3.2078,2720.6,2719.8,6.69713912]
[1738723098497,0.00551268,2720.4,2719.8,6.7026518]
[1738723098696,0.00551268,2720.4,2719.8,0.00551268]
[1738723099905,0.00551268,2720.4,2720.1,3.2078]
[1738723100801,0.00551268,2720.4,2719.9,0.6623]
[1738723103397,0.00551268,2720.4,2719.8,0.00551268]
[1738723103398,3.2078,2720.3,2719.8,0.00551268]
[1738723104505,3.2078,2720.0,2719.8,0.00551268]
[1738723107108,3.2078,2720.0,2718.8,0.97186526]
[1738723107109,0.58808,2719.8,2718.4,3.19812641]
[1738723107412,3.2078,2719.3,2718.4,3.19812641]
[1738723108411,3.2078,2719.6,2719.0,3.2078]
[1738723108611,3.2078,2719.6,2718.7,3.19812641]
[1738723108817,3.2078,2719.6,2718.8,0.7023]
[1738723109112,3.2078,2719.2,2718.6,3.21331268]
[1738723109407,3.2078,2718.9,2718.6,0.00551268]
[1738723110508,0.00551268,2719.0,2718.8,3.2078]
[1738723111714,0.00551268,2719.0,2718.6,0.00551268]
[1738723112212,3.2078,2718.9,2718.6,0.00551268]
[1738723113405,0.00551268,2719.0,2718.6,3.20363909]
[1738723113610,0.00551268,2719.0,2718.6,6.41143909]
[1738723113815,0.00551268,2719.0,2718.9,3.19812641]
[1738723114011,3.2078,2719.5,2718.9,3.19812641]
[1738723114208,3.2078,2719.9,2718.9,6.40592641]
[1738723114410,3.2078,2719.9,2719.0,0.7036]
[1738723115412,3.2078,2719.6,2718.6,6.41143909]
[1738723115615,3.2078,2719.0,2718.6,0.00551268]
[1738723115809,3.2078,2719.4,2718.6,0.00551268]
[1738723117427,3.2078,2719.4,2718.6,6.41143909]
[1738723118826,3.2078,2719.4,2718.6,3.21331268]
[1738723119921,3.2078,2719.4,2718.6,6.41143909]
[1738723120127,3.21331268,2719.7,2718.9,3.2078]
[1738723121635,3.2078,2719.4,2718.6,0.00551268]
[1738723121934,3.2078,2719.0,2718.6,0.00551268]
[1738723123447,3.2078,2719.3,2718.6,0.00551268]
[1738723124837,3.2078,2719.3,2718.7,3.2078]
[1738723125032,3.2078,2719.6,2718.7,3.2078]
[1738723125231,3.2078,2719.6,2718.6,3.20363909]
[1738723127927,0.00551268,2719.7,2718.6,0.00551268]
[1738723127928,3.2078,2719.3,2718.6,0.00551268]
[1738723128938,3.2078,2719.0,2718.6,0.00551268]
[1738723131843,0.00551268,2719.7,2718.8,3.2078]
[1738723132135,0.00551268,2719.7,2719.2,3.2078]
[1738723133032,0.00551268,2719.7,2718.9,3.2078]
[1738723134538,0.00551268,2719.7,2719.0,3.2078]
[1738723135438,0.00551268,2719.7,2719.1,0.6713]
[1738723136841,3.2078,2719.6,2719.1,0.6713]
[1738723139941,0.00551268,2719.7,2719.5,3.2078]
[1738723140141,3.2078,2720.6,2719.6,3.19812641]
[1738723140345,3.2078,2720.6,2720.1,3.2078]
[1738723140545,1.3985,2721.3,2720.1,3.2078]
[1738723140546,3.2078,2720.9,2720.2,0.6639]
[1738723140740,3.2078,2720.9,2720.2,3.86202641]
[1738723141245,3.2078,2721.4,2720.6,3.2078]
[1738723141644,0.00551268,2720.8,2720.6,3.2078]
[1738723141846,0.00551268,2720.8,2720.3,0.00551268]
[1738723142049,3.21331268,2720.8,2720.3,0.00551268]
[1738723142541,0.00551268,2720.8,2720.3,0.00551268]
[1738723142942,3.2078,2720.4,2720.3,0.00551268]
[1738723145854,8.2078,2720.4,2719.5,0.7093]
[1738723146047,3.2078,2720.0,2719.5,0.7093]
[1738723146749,3.2078,2720.0,2719.3,0.6611]
[1738723146954,3.2078,2720.0,2719.1,3.2078]
[1738723146955,3.2078,2719.7,2719.0,0.6762]
[1738723147252,3.2078,2719.7,2719.4,0.00551268]
[1738723148159,3.2078,2720.1,2719.5,3.2078]
[1738723148348,3.2078,2720.1,2719.5,0.6952]
[1738723148848,3.2078,2719.8,2719.4,0.00551268]
[1738723150149,0.6515,2720.6,2719.6,3.19812641]
[1738723150150,3.2078,2720.4,2719.6,3.19812641]
[1738723150449,3.2078,2720.4,2719.7,0.6952]
[1738723150649,3.2078,2720.4,2719.8,0.6769]
[1738723151549,3.2078,2720.1,2719.8,0.6769]
[1738723151745,3.2078,2720.1,2719.4,0.00551268]
[1738723151949,3.2078,2719.8,2719.4,0.00551268]
[1738723152349,3.2078,2720.1,2719.4,0.00551268]
[1738723153751,3.2078,2719.8,2719.4,0.00551268]
[1738723154152,3.2078,2720.1,2719.4,0.00551268]
[1738723154651,3.2078,2719.8,2719.4,0.00551268]
[1738723156146,3.2078,2720.1,2719.4,0.00551268]
[1738723156949,0.30258991,2720.8,2719.9,3.19812641]
[1738723156950,3.2078,2720.4,2719.9,3.19812641]
[1738723157547,3.21331268,2720.8,2720.2,3.2078]
[1738723157747,3.21331268,2720.8,2720.2,6.40592641]
[1738723158354,0.00551268,2720.8,2720.2,6.40592641]
[1738723159962,3.21331268,2720.8,2720.2,3.2078]
[1738723160255,0.00551268,2720.8,2720.2,3.2078]
[1738723160446,0.00551268,2720.8,2719.9,3.19812641]
[1738723160447,3.21331268,2720.8,2719.9,6.40592641]
[1738723160653,3.21331268,2720.8,2719.9,3.2078]
[1738723161150,3.2078,2720.5,2719.9,3.2078]
[1738723161349,3.2078,2720.5,2719.8,1.3356]
[1738723161550,0.00551268,2720.8,2719.8,1.3356]
[1738723161551,3.2078,2720.2,2719.8,1.3356]
[1738723161752,3.2078,2720.2,2719.4,1.39651268]
[1738723161956,3.2078,2719.9,2719.4,0.00551268]
[1738723162561,3.2078,2719.8,2719.4,0.00551268]
[1738723163350,0.6515,2720.5,2719.4,0.00551268]
[1738723163351,3.2078,2720.2,2719.6,3.19812641]
[1738723163662,3.2078,2720.2,2719.7,0.6909]
[1738723163856,3.2078,2720.2,2719.8,0.6601]
[1738723164260,3.2078,2720.6,2719.8,3.8679]
[1738723164565,3.2078,2720.6,2719.8,0.6601]
[1738723165762,3.2078,2720.6,2719.9,3.2078]
[1738723165963,3.2078,2720.6,2719.8,0.6601]
[1738723167268,3.2078,2720.6,2719.9,6.40592641]
[1738723167759,0.00551268,2720.8,2719.9,6.40592641]
[1738723167968,3.2078,2720.7,2719.9,3.2078]
[1738723169056,3.2078,2720.4,2719.4,0.00551268]
[1738723169258,0.6552,2720.3,2719.4,0.00551268]
[1738723170054,3.2078,2720.4,2719.4,0.00551268]
[1738723170055,3.2078,2720.4,2719.6,6.40592641]
[1738723171161,0.00551268,2720.8,2720.2,6.40592641]
[1738723171362,0.00551268,2720.8,2720.3,1.3804]
[1738723171563,0.00551268,2720.8,2720.5,6.40592641]
[1738723171771,3.2078,2721.8,2720.8,3.19812641]
[1738723172071,3.2078,2721.8,2720.7,3.2078]
[1738723172265,3.2078,2721.2,2720.4,3.78212782]
[1738723172460,3.2078,2720.9,2720.4,3.78212782]
[1738723172666,1.391,2721.9,2720.4,0.57432782]
[1738723172667,3.2078,2720.6,2720.4,0.57432782]
[1738723172861,3.2078,2720.6,2719.4,3.2078]
[1738723173072,3.19812641,2720.6,2720.4,0.00551268]
[1738723173261,3.2078,2720.5,2720.4,0.00551268]
[1738723173858,3.2078,2720.8,2720.4,0.00551268]
[1738723175163,0.00551268,2720.9,2720.4,0.00551268]
[1738723175164,3.2078,2720.5,2720.4,0.00551268]
[1738723176971,3.2078,2720.8,2720.4,0.00551268]
[1738723179169,3.2078,2720.5,2720.4,0.00551268]
[1738723182866,0.00551268,2720.9,2720.4,3.21331268]
[1738723183378,3.2078,2721.7,2720.7,3.2078]
[1738723183579,3.2078,2721.7,2720.6,3.79569]
[1738723183767,3.2078,2721.7,2721.0,3.2078]
[1738723184377,3.2078,2721.7,2720.6,3.2078]
[1738723185175,3.2078,2721.7,2720.9,3.2078]
[1738723185570,3.2078,2721.7,2720.5,2.37210978]
[1738723185972,3.2078,2721.4,2720.5,2.0743]
[1738723186168,3.2078,2721.7,2720.5,2.0743]
[1738723186470,3.2078,2721.7,2720.8,3.2078]
[1738723188477,3.2078,2722.0,2720.8,3.2078]
[1738723189376,3.2078,2722.0,2720.7,3.48603211]
[1738723189377,3.2078,2722.0,2721.4,3.2078]
[1738723189576,3.2078,2722.0,2721.5,0.7081]
[1738723190974,3.2078,2722.0,2721.4,3.2078]
[1738723191178,3.2078,2721.6,2720.9,3.2078]
[1738723191483,3.48603211,2722.4,2720.9,3.2078]
[1738723191484,3.2078,2722.0,2720.9,3.2078]
[1738723191675,3.2078,2721.7,2720.9,3.2078]
[1738723193283,3.2078,2722.0,2721.2,3.2078]
[1738723193479,3.2078,2722.0,2721.3,0.6995]
[1738723194079,3.2078,2721.7,2720.9,3.2078]
[1738723194580,3.2078,2722.0,2720.9,3.2078]
[1738723194983,3.2078,2721.7,2720.9,3.2078]
[1738723197280,3.2078,2721.4,2720.9,3.2078]
[1738723199380,3.2078,2721.4,2720.6,0.6995]
[1738723200480,1.4102,2721.7,2721.0,3.2078]
[1738723200481,3.2078,2721.7,2721.0,3.2078]
[1738723200989,3.2078,2721.4,2720.7,3.2078]
[1738723201292,3.2078,2721.1,2720.5,0.6498]
[1738723204383,1.3466,2721.6,2720.4,3.21331268]
[1738723204384,3.2078,2720.8,2720.4,3.21331268]
[1738723204787,3.2078,2720.8,2720.4,0.00551268]
[1738723204987,0.6934,2720.7,2720.4,0.00551268]
[1738723206487,3.2078,2720.5,2720.4,0.00551268]
[1738723206681,6.99032951,2720.5,2719.5,3.2078]
[1738723206880,3.2078,2720.4,2719.5,3.2078]
[1738723207081,3.2078,2720.4,2719.6,3.19460951]
[1738723207489,3.9012,2720.7,2720.0,3.2078]
[1738723207990,0.00551268,2720.6,2720.1,0.00551268]
[1738723208391,0.00551268,2720.6,2720.1,1.36651268]
[1738723209590,0.00551268,2720.6,2720.2,3.19460951]
[1738723209894,0.00551268,2720.6,2720.1,1.36651268]
[1738723213382,3.2078,2720.4,2720.1,0.00551268]
[1738723213692,0.58797,2720.3,2720.1,0.00551268]
[1738723213888,0.7145,2720.2,2720.1,0.00551268]
[1738723214388,0.7145,2720.2,2719.3,3.2078]
[1738723214389,5.7145,2720.2,2719.3,3.2078]
[1738723214594,3.2078,2719.9,2719.3,3.2078]
[1738723215690,3.2078,2719.9,2719.3,3.21331268]
[1738723216290,3.2078,2720.2,2719.3,6.40792219]
[1738723218592,3.2078,2720.2,2719.3,3.21331268]
[1738723222394,0.58796,2720.4,2719.3,3.21331268]
[1738723222395,3.2078,2719.9,2719.3,3.21331268]
[1738723222903,3.2078,2719.4,2719.3,0.00551268]
[1738723224706,3.2078,2719.7,2719.3,0.00551268]
[1738723225704,3.2078,2719.4,2719.3,0.00551268]
[1738723225895,3.2078,2719.4,2718.5,0.6651]
[1738723226097,7.16709,2719.8,2718.1,3.2078]
[1738723226098,3.2078,2718.8,2718.2,0.6929]
[1738723226294,3.2078,2718.5,2718.2,0.6929]
[1738723229203,3.2078,2719.2,2718.2,6.28131]
[1738723229403,3.2078,2719.2,2718.4,3.19460951]
[1738723229806,3.2078,2719.7,2718.5,3.2078]
[1738723230501,3.2078,2719.7,2718.4,3.19460951]
[1738723230502,0.00551268,2719.4,2718.9,3.2078]
[1738723230703,0.00551268,2719.4,2719.0,0.6536]
[1738723232099,6.40792219,2719.4,2718.2,3.2078]
[1738723232405,3.2078,2719.1,2718.3,0.6748]
[1738723232808,3.2078,2719.1,2718.3,3.8826]
[1738723233003,3.2078,2719.1,2718.3,4.5804]
[1738723233405,6.40792219,2719.4,2718.3,4.5804]
[1738723233902,3.2078,2718.9,2718.3,1.3726]
[1738723235312,3.2078,2718.9,2718.3,4.5804]
[1738723236010,3.2078,2719.2,2718.3,4.5804]
[1738723237899,3.2078,2718.9,2718.3,4.5804]
[1738723238203,3.2078,2718.9,2718.3,3.8826]
[1738723238709,3.2078,2718.9,2718.3,0.6748]
[1738723239207,3.2078,2718.6,2718.3,0.6748]
[1738723240110,3.9073,2719.0,2718.3,0.6748]
[1738723240507,3.20012219,2719.4,2718.7,3.2078]
[1738723240508,3.2078,2719.3,2718.7,3.2078]
[1738723241807,3.19460951,2719.1,2718.7,3.2078]
[1738723242114,3.2078,2719.3,2718.7,3.2078]
[1738723243310,0.00551268,2719.4,2718.7,3.2078]
[1738723243611,0.00551268,2719.4,2718.8,0.6947]
[1738723243915,16.99,2721.2,2719.2,3.2078]
[1738723243916,3.2078,2720.1,2719.2,3.2078]
[1738723244109,3.2078,2720.1,2719.3,0.7013]
[1738723244512,0.6564,2720.0,2719.3,0.7013]
[1738723244812,3.2078,2719.6,2719.3,0.7013]
[1738723245014,3.2078,2719.9,2719.3,0.7013]
[1738723245317,3.2078,2719.9,2719.4,0.00551268]
[1738723245318,3.21331268,2719.9,2719.4,0.00551268]
[1738723248515,0.00551268,2719.9,2719.4,0.00551268]
[1738723249813,0.00551268,2719.9,2719.6,3.2078]
[1738723250013,0.00551268,2719.9,2719.7,0.6593]
[1738723250215,3.2078,2720.3,2719.7,0.6593]
[1738723250412,3.2078,2721.0,2720.2,3.2078]
[1738723250607,3.2078,2721.0,2720.3,0.6919]
[1738723250911,4.50510951,2721.5,2719.9,3.2078]
[1738723250912,3.2078,2720.7,2719.9,3.2078]
[1738723251109,3.2078,2720.4,2719.9,3.2078]
[1738723251310,3.2078,2720.1,2719.7,0.6593]
[1738723251511,3.2078,2720.1,2719.4,0.00551268]
[1738723252019,0.6748,2720.0,2719.4,0.00551268]
[1738723255914,3.2078,2719.8,2719.4,0.00551268]
[1738723256220,0.6678,2719.7,2719.4,0.00551268]
[1738723258710,3.2078,2719.5,2719.4,0.00551268]
[1738723259112,3.2078,2719.5,2717.8,1.49342005]
[1738723259113,8.2078,2719.5,2718.5,0.684]
[1738723259312,8.2078,2719.5,2717.8,1.49342005]
[1738723259313,3.2078,2718.7,2717.9,4.5551]
[1738723259521,3.2078,2718.7,2717.9,5.2391]
[1738723260013,3.2078,2718.7,2717.9,4.5576]
[1738723260416,0.00551268,2718.6,2718.0,0.00551268]
[1738723260816,3.2078,2718.1,2718.0,0.00551268]
[1738723261220,3.2078,2718.1,2717.5,0.684]
[1738723261420,3.2078,2717.8,2717.5,0.684]
[1738723262515,0.7069,2718.3,2717.5,0.684]
[1738723262710,0.7069,2718.3,2717.5,3.8918]
[1738723262914,3.2078,2718.4,2717.5,3.8918]
[1738723262915,0.00551268,2718.6,2717.8,3.2078]
[1738723263520,3.2078,2718.4,2717.8,3.2078]
[1738723263716,3.2078,2718.4,2717.6,0.6894]
[1738723264023,3.2078,2718.4,2717.8,3.2078]
[1738723264220,3.2078,2718.4,2717.6,0.6894]
[1738723264414,0.00551268,2718.6,2717.6,3.88400951]
[1738723265716,0.00551268,2718.6,2718.0,3.2078]
[1738723265921,0.00551268,2718.6,2718.1,0.7023]
[1738723266219,0.00551268,2718.6,2718.2,0.6608]
[1738723267716,3.2078,2718.5,2718.2,0.6608]
[1738723268729,3.2078,2718.5,2718.1,0.7023]
[1738723268730,3.2078,2718.5,2717.7,3.2078]
[1738723268929,3.2078,2718.2,2717.8,1.4295]
[1738723269224,0.00551268,2718.6,2718.0,3.2078]
[1738723269421,3.2078,2719.2,2718.3,3.2078]
[1738723269624,3.2078,2719.5,2718.4,0.6811]
[1738723269822,3.2078,2719.5,2718.6,3.2078]
[1738723270823,0.00551268,2719.3,2718.8,0.00551268]
[1738723277026,3.2078,2719.2,2718.8,0.00551268]
[1738723279325,3.2078,2719.9,2719.1,3.19460951]
[1738723279532,3.2078,2720.4,2719.2,4.5224]
[1738723279726,0.6616,2720.7,2719.2,4.5224]
[1738723279727,3.2078,2720.0,2719.2,4.5224]
[1738723280032,3.2078,2719.7,2719.2,1.3146]
[1738723280419,3.2078,2720.0,2719.2,1.3146]
[1738723281434,3.2078,2719.7,2719.2,1.3146]
[1738723282134,3.2078,2719.7,2718.8,0.00551268]
[1738723282431,3.2078,2719.1,2718.8,0.00551268]
[1738723284229,3.922,2719.6,2718.8,3.21331268]
[1738723284528,3.2078,2719.8,2719.3,3.2078]
[1738723284725,3.2078,2719.8,2719.4,0.6647]
[1738723284925,3.2078,2720.2,2719.6,3.2078]
[1738723285329,3.2078,2720.2,2719.7,0.6655]
[1738723286325,3.2078,2720.2,2719.6,3.2078]
[1738723289232,3.2078,2720.2,2719.7,3.19460951]
[1738723289436,3.2078,2720.8,2719.9,3.2078]
[1738723290132,3.2078,2720.8,2720.1,0.00551268]
[1738723290334,3.2078,2720.5,2720.1,0.00551268]
[1738723292333,3.2078,2720.2,2720.1,0.00551268]
[1738723296133,3.2078,2720.5,2720.1,0.00551268]
[1738723297536,3.2078,2720.2,2720.1,0.00551268]
[1738723298039,11.40240951,2720.2,2719.1,3.2078]
[1738723298236,3.2078,2719.8,2719.1,3.9032]
[1738723299033,3.2078,2719.5,2719.0,0.6753]
[1738723299237,3.2078,2719.5,2719.2,0.00551268]
[1738723300335,0.66,2719.4,2719.2,0.00551268]
[1738723300648,0.66,2719.4,2717.9,0.5745596]
[1738723300649,3.25328049,2719.3,2717.9,0.5745596]
[1738723300836,3.2078,2718.1,2717.9,0.5745596]
[1738723301234,3.2078,2718.1,2717.1,3.2078]
[1738723301537,3.2078,2717.8,2717.1,3.2078]
[1738723301937,3.2078,2717.8,2717.3,0.00551268]
[1738723302631,0.00551268,2717.9,2717.3,3.20012219]
[1738723303030,0.00551268,2717.9,2717.4,0.7068]
[1738723303230,0.00551268,2717.9,2717.5,0.6962]
[1738723304436,0.00551268,2717.9,2717.7,3.2078]
[1738723304833,3.2078,2718.6,2717.7,3.2078]
[1738723305751,3.2078,2718.3,2717.5,0.6962]
[1738723306046,3.2078,2718.0,2717.5,0.6962]
[1738723306740,3.2078,2717.7,2717.5,0.6962]
[1738723307046,3.2078,2717.7,2717.3,0.00551268]
[1738723312252,3.2078,2717.4,2717.3,0.00551268]
[1738723316552,3.2078,2717.7,2717.3,0.00551268]
[1738723318958,3.2078,2717.7,2717.3,3.20012219]
[1738723319660,3.2078,2717.7,2717.3,0.00551268]
[1738723320654,3.2078,2717.4,2717.3,0.00551268]
[1738723323455,8.2078,2717.4,2717.3,0.00551268]
[1738723323757,0.58871,2716.9,2715.8,3.2078]
[1738723323964,3.2078,2716.5,2715.8,3.2078]
[1738723324857,3.2078,2715.9,2715.7,1.3584]
[1738723325157,3.21331268,2716.4,2715.7,1.3584]
[1738723325364,3.21331268,2716.4,2715.8,6.40240951]
[1738723325551,3.2078,2717.0,2716.1,6.40240951]
[1738723326157,3.2078,2716.7,2715.8,0.6867]
[1738723326752,3.2078,2716.3,2715.7,1.3584]
[1738723328657,3.2078,2716.3,2715.5,0.00552323]
[1738723328863,3.2078,2716.0,2715.5,0.00552323]
[1738723330866,3.2078,2716.4,2715.8,3.2078]
[1738723331069,3.2078,2716.4,2715.9,1.3037]
[1738723331956,0.00552323,2716.5,2715.9,1.3037]
[1738723332168,0.00552323,2716.5,2716.1,3.2078]
[1738723332367,0.00552323,2716.5,2715.9,1.3037]
[1738723333762,3.2078,2716.4,2715.9,1.3037]
[1738723334769,3.2078,2716.4,2715.9,1.9686]
[1738723335066,0.00552323,2716.5,2716.1,6.40240951]
[1738723335665,3.2078,2716.7,2716.1,6.40240951]
[1738723335965,3.2078,2717.2,2716.4,6.40240951]
[1738723336363,3.2078,2717.6,2717.0,6.40240951]
[1738723336564,3.2078,2718.0,2717.3,6.40240951]
[1738723337066,3.2078,2718.5,2717.8,3.2078]
[1738723337562,3.2078,2718.9,2718.2,3.2078]
[1738723337760,3.2078,2718.9,2718.2,6.40240951]
[1738723338771,3.2078,2718.9,2718.3,0.7073]
[1738723339066,3.2078,2718.9,2718.3,1.3933]
[1738723340170,3.2078,2719.1,2718.5,3.2078]
[1738723340368,3.2078,2719.1,2718.3,1.3933]
[1738723340369,3.2078,2720.2,2719.0,6.40240951]
[1738723340669,3.2078,2720.2,2718.6,1.386]
[1738723340670,3.2078,2720.1,2719.4,3.19460951]
[1738723341970,3.2078,2720.1,2719.3,3.21332323]
[1738723343064,3.2078,2719.4,2719.3,0.00552323]
[1738723344460,3.2078,2720.3,2719.3,3.21332323]
[1738723344971,3.2078,2720.3,2719.4,0.6802]
[1738723345172,3.2078,2720.0,2719.4,0.6802]
[1738723345661,3.2078,2719.7,2719.4,0.6802]
[1738723345866,3.2078,2720.0,2719.4,0.6802]
[1738723346372,3.2078,2720.0,2719.3,3.21332323]
[1738723346571,3.2078,2719.5,2719.3,0.00552323]
[1738723347266,0.6756,2719.4,2719.3,0.00552323]
[1738723348168,3.2078,2720.0,2719.3,0.00552323]
[1738723348472,3.2078,2720.0,2719.3,3.21332323]
[1738723349068,3.2078,2720.6,2719.7,3.19460951]
[1738723349473,3.2078,2720.6,2719.9,3.2078]
[1738723350276,0.6756,2720.9,2720.2,3.2078]
[1738723350766,0.6756,2720.9,2719.9,3.2078]
[1738723350972,0.6756,2720.9,2720.2,3.2078]
[1738723351171,3.2078,2721.1,2720.2,3.2078]
[1738723352375,3.2078,2720.5,2719.8,3.2078]
[1738723352570,3.2078,2720.5,2719.4,4.5297]
[1738723352765,3.2078,2720.5,2719.4,3.8783]
[1738723352970,3.2078,2720.2,2719.4,0.6705]
[1738723353473,3.2078,2720.2,2719.4,3.8783]
[1738723353672,0.6608,2720.4,2719.4,3.8783]
[1738723354172,0.6608,2720.4,2719.7,3.2078]
[1738723354573,3.2078,2720.6,2719.7,3.2078]
[1738723355470,3.2078,2721.0,2720.4,3.2078]
[1738723357768,3.2078,2721.0,2720.0,3.2078]
[1738723357972,3.2078,2721.0,2720.3,3.2078]
[1738723358374,0.6608,2721.1,2720.3,3.2078]
[1738723358966,3.2078,2721.0,2720.3,3.2078]
[1738723359470,3.2078,2721.0,2720.2,0.6384]
[1738723361380,3.2078,2721.0,2720.2,3.8462]
[1738723362176,0.6608,2721.1,2720.2,3.8462]
[1738723362371,3.2078,2721.3,2720.5,3.2078]
[1738723362572,3.2078,2721.3,2720.5,6.69329603]
[1738723362776,3.2078,2722.0,2720.9,3.2078]
[1738723362977,3.2078,2722.0,2721.0,1.346]
[1738723363683,3.2078,2722.0,2721.2,0.00551288]
[1738723364271,3.2078,2721.6,2721.2,0.00551288]
[1738723364475,3.2078,2721.3,2721.2,0.00551288]
[1738723364777,3.2078,2721.3,2720.4,3.2078]
[1738723365774,3.2078,2721.3,2720.7,3.2078]
[1738723365979,3.2078,2721.3,2720.8,0.6419]
[1738723366279,0.005503,2721.1,2720.8,0.6419]
[1738723366579,0.005503,2721.1,2720.9,0.6653]
[1738723368984,0.005503,2721.1,2720.7,3.2078]
[1738723370781,0.005503,2721.1,2720.6,0.00551288]
[1738723370987,3.2078,2720.8,2720.6,0.00551288]
[1738723374188,0.005503,2721.1,2720.7,3.2078]
[1738723374388,0.005503,2721.1,2720.8,0.703]
[1738723374689,0.6706,2721.9,2721.0,3.2078]
[1738723374690,3.2078,2721.9,2721.0,3.2078]
[1738723374888,3.2078,2721.9,2720.9,3.2078]
[1738723375185,3.2078,2721.9,2721.2,3.2078]
[1738723375705,3.2078,2721.9,2720.9,3.2078]
[1738723377793,3.2078,2721.9,2721.0,0.6738]
[1738723380691,3.2078,2721.6,2721.0,0.6738]
[1738723381000,0.692,2721.5,2721.0,0.6738]
[1738723381598,0.692,2721.5,2720.8,0.703]
[1738723381790,3.2078,2721.3,2720.6,0.00551288]
[1738723382092,0.692,2721.5,2720.6,0.00551288]
[1738723382093,3.2078,2720.9,2720.6,0.00551288]
[1738723382294,0.692,2720.8,2720.6,0.00551288]
[1738723382693,3.2078,2721.2,2720.6,0.00551288]
[1738723382888,3.8553,2721.2,2720.6,0.00551288]
[1738723384095,3.2078,2720.9,2720.6,0.00551288]
[1738723385001,3.79564,2720.9,2720.6,0.00551288]
[1738723385196,0.58787,2720.7,2719.8,0.6346]
[1738723385399,3.19619117,2720.8,2719.8,0.6346]
[1738723385400,3.2078,2720.4,2719.8,0.6346]
[1738723385595,3.2078,2720.7,2720.0,3.2078]
[1738723385995,3.2078,2720.7,2720.2,3.19619117]
[1738723386395,3.21331288,2720.7,2720.2,3.20170405]
[1738723387098,1.382,2722.1,2720.2,3.20170405]
[1738723387099,3.2078,2721.0,2720.5,3.19619117]
[1738723387298,3.2078,2721.0,2720.6,0.6539]
[1738723387496,3.2078,2721.6,2720.9,3.2078]
[1738723387994,3.2078,2721.9,2720.9,3.2078]
[1738723388195,3.2078,2721.9,2721.2,3.2078]
[1738723388605,3.2078,2721.9,2721.3,0.6539]
[1738723390295,3.2078,2722.6,2721.7,3.19619117]
[1738723391099,3.2078,2722.6,2721.9,0.00551288]
[1738723392997,3.2078,2722.2,2721.9,0.00551288]
[1738723393205,3.2078,2722.5,2721.9,0.00551288]
[1738723394803,3.2078,2722.9,2722.3,3.19619117]
[1738723395105,3.2078,2722.9,2722.2,1.3496]
[1738723399600,3.2078,2723.2,2722.4,3.2078]
[1738723402900,3.2078,2722.9,2722.2,1.3496]
[1738723406711,3.2078,2723.2,2722.4,3.2078]
[1738723407412,3.2078,2722.9,2722.0,6.40399117]
[1738723407610,3.2078,2722.9,2722.0,3.2078]
[1738723408609,0.661,2722.8,2722.0,3.2078]
[1738723410403,0.661,2722.8,2721.9,0.00551288]
[1738723410608,3.2078,2722.3,2721.9,0.00551288]
[1738723411410,0.6461,2722.6,2721.9,0.00551288]
[1738723411613,3.678,2723.9,2721.9,0.00551288]
[1738723411614,3.2078,2723.1,2722.2,3.2078]
[1738723411909,3.2078,2723.1,2722.0,3.19619117]
[1738723412111,3.2078,2722.8,2721.9,4.59331288]
[1738723412317,0.6461,2722.7,2721.9,4.59331288]
[1738723412811,3.2078,2722.8,2721.9,4.59331288]
[1738723412812,3.2078,2722.8,2722.3,3.19619117]
[1738723413114,3.2078,2722.8,2722.4,1.3624]
[1738723413615,3.2078,2723.2,2722.4,1.3624]
[1738723413812,3.2078,2723.2,2722.6,3.19619117]
[1738723414521,3.2078,2723.5,2722.8,3.2078]
[1738723414718,3.2078,2723.5,2722.9,3.19619117]
[1738723415213,3.2078,2723.5,2723.0,0.6503]
[1738723415909,3.2078,2723.5,2723.0,0.64718238]
[1738723416318,0.6461,2723.7,2723.0,0.64718238]
[1738723416514,0.6461,2723.7,2723.1,3.2078]
[1738723416917,3.2078,2723.6,2723.1,3.2078]
[1738723417615,3.2078,2723.6,2723.2,0.6847]
[1738723420127,0.6461,2723.7,2723.2,0.6847]
[1738723422719,0.6461,2723.7,2723.1,3.2078]
[1738723423428,3.2078,2723.9,2723.4,3.2078]
[1738723424025,0.6404,2724.2,2723.4,0.00551288]
[1738723424026,3.8482,2724.2,2723.4,0.00551288]
[1738723424727,3.2078,2723.9,2723.4,0.00551288]
[1738723433131,3.2078,2723.5,2723.4,0.00551288]
[1738723435039,3.2078,2723.8,2723.4,0.00551288]
[1738723435636,3.2078,2723.8,2723.4,0.67521288]
[1738723436935,3.2078,2723.8,2723.4,0.00551288]
[1738723438637,3.2078,2723.5,2723.4,0.00551288]
[1738723441138,8.2078,2723.5,2723.4,0.00551288]
[1738723442034,3.8996,2723.5,2723.4,0.00551288]
[1738723442234,3.19619117,2723.8,2723.4,0.00551288]
[1738723442235,3.2078,2723.8,2723.4,0.00551288]
[1738723453545,3.2078,2723.5,2723.4,0.00551288]
[1738723454647,3.2078,2723.5,2722.6,3.8538]
[1738723454648,0.58729,2723.4,2722.6,3.8538]
[1738723454948,0.6768,2723.3,2722.6,3.8538]
[1738723455947,0.00551288,2723.2,2722.7,0.00551288]
[1738723457349,3.2078,2723.0,2722.7,0.00551288]
[1738723462749,3.2078,2723.0,2722.7,2.55091673]
[1738723462942,0.00551288,2723.2,2722.8,3.2078]
[1738723463148,0.686,2723.9,2723.0,2.54540385]
[1738723463351,0.686,2723.9,2723.1,0.6283]
[1738723463548,3.2078,2723.7,2723.1,0.6283]
[1738723464451,3.2078,2723.4,2722.7,0.00551288]
[1738723464746,3.2078,2723.1,2722.7,0.00551288]
[1738723465046,3.2078,2723.1,2722.7,5.75871673]
[1738723465351,3.2078,2723.5,2723.0,2.54540385]